fUSD/lending_fUSD_20240328
["ID","MTS","AMOUNT","RATE_DAILY","PERIOD"]
[320826637,1711584651508,-1338.97,0.00054781,120]
[320826638,1711584651518,-500.0,0.00054781,120]
[320826639,1711584651527,-1179.75,0.00054781,120]
[320826640,1711584651537,-513.98,0.00054781,120]
[320826641,1711584651549,-808.33,0.00054781,120]
[320826642,1711584651558,-1559.22,0.00054781,120]
[320826643,1711584651567,-500.0,0.00054781,120]
[320826644,1711584651577,-500.0,0.00054781,120]
[320826645,1711584651586,-500.0,0.00054781,120]
[320826646,1711584651596,-500.0,0.00054781,120]
[320826647,1711584651605,-500.0,0.00054781,120]
[320826648,1711584651614,-554.32,0.00054781,120]
[320826649,1711584651625,-1148.84,0.00054781,120]
[320826650,1711584651635,-1676.59,0.00054781,120]
[320826651,1711584651646,-500.0,0.00054781,120]
[320826652,1711584651655,-500.0,0.00054781,120]
[320826653,1711584651665,-1781.35,0.00054781,120]
[320826654,1711584651674,-526.57,0.00054781,120]
[320826655,1711584651683,-1317.74439201,0.00054781,120]
[320826656,1711584652883,-1032.55560799,0.00054781,120]
[320826657,1711584652896,-459.28915047,0.00054781,120]
[320826658,1711584652909,-254.17452625,0.00054781,120]
[320826659,1711584652922,-107.82632328,0.00054781,120]
[320826660,1711584652932,-393.22226311,0.00054781,120]
[320826661,1711584652944,-651.79773689,0.00054781,120]
[320826662,1711584652954,-20.34549284,0.00054781,120]
[320826663,1711584652965,-479.65450716,0.00054781,120]
[320826664,1711584652975,-470.42339282,0.00054781,120]
[320826665,1711584653487,-379.99,0.00048836,2]
[320826666,1711584653498,-376.90660718,0.00054781,120]
[320826667,1711584653508,-180.79071226,0.00054781,120]
[320826668,1711584653742,-414.95,0.000522,30]
[320826669,1711584653752,-500.0,0.00054507,120]
[320826670,1711584653761,-565.1793687,0.00054507,120]
[320826671,1711584653771,-500.0,0.00054507,120]
[320826672,1711584653781,-1106.01928774,0.00054781,120]
[320826673,1711584653791,-849.05,0.00054781,120]
[320826674,1711584653801,-58.58214655,0.00054781,120]
[320826675,1711584654269,-2126.68034598,0.00052,120]
[320826676,1711585073045,223.94252704,0.00024,2]
[320826677,1711585159887,250.0,0.00027,3]
[320826678,1711585160847,300.0,0.00029,3]
[320826679,1711585161946,350.0,0.00031,3]
[320826680,1711585163064,400.0,0.00033,3]
[320826681,1711585164153,450.0,0.00035,3]
[320826682,1711585165266,500.0,0.00037,3]
[320826683,1711585166393,550.0,0.00039,3]
[320826684,1711585432726,715.0,0.000296,2]
[320826685,1711585433202,644.0,0.000296,2]
[320826689,1711585810047,1600.00493237,0.00040484,4]
[320826720,1711585833278,-555.0,0.00040485,2]
[320826721,1711585833289,-150.0,0.00048002,120]
[320826722,1711585833298,-198.57194492,0.00048086,4]
[320826723,1711585833307,-1479.489,0.00048087,4]
[320826724,1711585833317,-30000.0,0.00048088,2]
[320826725,1711585833326,-1273.07360979,0.00048093,4]
[320826726,1711585833335,-106.32409172,0.00048094,2]
[320826727,1711585833346,-2341.67590828,0.00048094,2]
[320826728,1711585833355,-1175.0,0.00048094,2]
[320826729,1711585833364,-33998.847,0.00048094,2]
[320826730,1711585833373,-457.0,0.00048094,2]
[320826731,1711585833382,-961.0,0.00048094,2]
[320826732,1711585833391,-1046.0,0.00048094,2]
[320826733,1711585833400,-150.0,0.00048094,2]
[320826734,1711585833410,-150.0,0.00048468,120]
[320826735,1711585833420,-380.0,0.00048794,2]
[320826736,1711585833431,-380.0,0.00048797,2]
[320826737,1711585833440,-380.0,0.00048804,2]
[320826738,1711585833450,-380.0,0.00048807,2]
[320826739,1711585833459,-380.0,0.00048813,2]
[320826740,1711585833469,-380.0,0.00048823,2]
[320826741,1711585833478,-333.05,0.00048825,2]
[320826742,1711585833487,-150.0,0.00049438,120]
[320826743,1711585833497,-451.94,0.00049438,2]
[320826744,1711585833507,-193.67,0.00049891,2]
[320826745,1711585833516,-3220.0,0.0005,11]
[320826746,1711585833525,-150.0,0.000502,10]
[320826747,1711585833535,-150.0,0.000507,10]
[320826748,1711585833545,-166.5509927,0.00051042,60]
[320826749,1711585833554,-150.0,0.000512,10]
[320826750,1711585833563,-351.05,0.00051393,2]
[320826751,1711585833572,-156.09128763,0.00051411,60]
[320826752,1711585833581,-12560.32,0.00051427,2]
[320826753,1711585833591,-623.45,0.00051439,2]
[320826754,1711585833600,-301.26,0.00051444,2]
[320826755,1711585833610,-183.0,0.00051449,2]
[320826756,1711585833619,-236.8,0.00051449,120]
[320826757,1711585833629,-1000.0,0.0005146,120]
[320826758,1711585833638,-250.0,0.00051528,120]
[320826759,1711585833649,-200.0,0.00051544,2]
[320826760,1711585833658,-3439.68,0.00051551,2]
[320826762,1711585833667,-250.0,0.00051581,120]
[320826764,1711585833676,-162.77,0.00051597,120]
[320826766,1711585833685,-150.0,0.0005169,2]
[320826767,1711585833695,-150.0,0.000517,10]
[320826770,1711585833705,-250.0,0.00051732,112]
[320826771,1711585833714,-2034.0,0.00051737,117]
[320826772,1711585833724,-151.95091951,0.00051835,60]
[320826773,1711585833733,-1909.38,0.00051901,2]
[320826774,1711585833744,-151.95091951,0.00051917,60]
[320826775,1711585833753,-1176.66,0.00051929,120]
[320826776,1711585833763,-1392.60743257,0.00051965,10]
[320826777,1711585833772,-373.30965402,0.00052,120]
[320826778,1711585833782,-5000.0,0.00052,120]
[320826779,1711585833794,-3022.42991579,0.00052,120]
[320826780,1711585833803,-450.0,0.00052,58]
[320826781,1711585833812,-3191.22,0.00052005,2]
[320826782,1711585833823,-1000.0,0.00052055,30]
[320826783,1711585833833,-1006.91,0.00052141,30]
[320826784,1711585833843,-408.21,0.00052141,30]
[320826785,1711585833853,-193.67,0.00052155,2]
[320826786,1711585833867,-150.0,0.000522,11]
[320826787,1711585833876,-168.35247927,0.00052248,60]
[320826788,1711585833885,-157.77838332,0.00052308,60]
[320826789,1711585833894,-164.61520912,0.00052325,60]
[320826790,1711585833903,-150.0,0.00052593,120]
[320826791,1711585833912,-156.09128763,0.00052594,60]
[320826792,1711585833921,-672.0,0.00052603,120]
[320826793,1711585833930,-150.0,0.00052668,120]
[320826794,1711585833939,-150.0,0.000527,11]
[320826795,1711585833949,-156.09128763,0.00052723,60]
[320826796,1711585833960,-254.5727,0.000529,2]
[320826797,1711585833969,-9914.28624505,0.000529,2]
[320826798,1711585833978,-2984.64259922,0.000529,2]
[320826799,1711585833987,-152.48423612,0.000529,120]
[320826800,1711585833997,-157.77838332,0.00052936,60]
[320826801,1711585834007,-168.35247927,0.00052959,60]
[320826802,1711585834016,-594.24,0.0005299,30]
[320826803,1711585834024,-30000.0,0.00053,2]
[320826804,1711585834033,-2000.0,0.00053,30]
[320826805,1711585834047,-350.0,0.00053,70]
[320826806,1711585834056,-152.48423607,0.00053043,120]
[320826807,1711585834065,-152.48423607,0.00053186,120]
[320826808,1711585834074,-3750.0,0.000532,2]
[320826809,1711585834084,-968.32922345,0.000532,2]
[320826810,1711585834093,-326.0,0.000532,2]
[320826811,1711585834102,-150.0,0.000532,11]
[320826812,1711585834111,-157.77838332,0.00053294,60]
[320826813,1711585834120,-152.48423607,0.00053329,120]
[320826814,1711585834129,-151.032809,0.00053348,102]
[320826815,1711585834139,-153.59356729,0.00053372,60]
[320826816,1711585834149,-151.28394325,0.00053407,60]
[320826817,1711585834158,-151.032809,0.00053448,103]
[320826818,1711585834167,-151.032809,0.00053448,112]
[320826819,1711585834176,-152.48423607,0.00053471,120]
[320826820,1711585834185,-151.032809,0.00053548,104]
[320826821,1711585834194,-154.85199087,0.00053562,60]
[320826822,1711585834203,-152.48423607,0.00053614,120]
[320826823,1711585834212,-151.032809,0.00053648,105]
[320826824,1711585834221,-151.28394325,0.00053658,60]
[320826825,1711585834231,-150.0,0.000537,11]
[320826826,1711585834240,-151.032809,0.00053748,106]
[320826827,1711585834250,-152.48423607,0.00053757,120]
[320826828,1711585834259,-1813.0,0.000538,7]
[320826829,1711585834268,-151.032809,0.00053848,107]
[320826830,1711585834278,-152.48423607,0.000539,120]
[320826831,1711585834291,-151.032809,0.00053948,108]
[320826832,1711585834437,-10000.0,0.00054,14]
[320826833,1711585834446,-450.0,0.00054,54]
[320826834,1711585834455,-1484.0,0.00054,30]
[320826835,1711585834464,-1500.0,0.00054,120]
[320826836,1711585834473,-157.3958824,0.00054034,60]
[320826837,1711585834482,-152.48423607,0.00054043,120]
[320826838,1711585834491,-151.032809,0.00054048,109]
[320826839,1711585834500,-150.0,0.00054081,120]
[320826840,1711585834509,-151.032809,0.00054148,110]
[320826841,1711585834519,-623.45,0.00054179,2]
[320826842,1711585834527,-152.48423607,0.00054186,120]
[320826843,1711585834536,-150.0,0.000542,11]
[320826844,1711585834547,-166.41585679,0.00054204,60]
[320826845,1711585834556,-800.0,0.00054213,30]
[320826846,1711585834566,-1925.41,0.00054246,120]
[320826847,1711585834575,-151.032809,0.00054248,111]
[320826848,1711585834584,-152.0,0.00054292,3]
[320826849,1711585834593,-152.48423607,0.00054329,120]
[320826850,1711585834603,-151.032809,0.00054348,112]
[320826851,1711585834612,-812.51,0.000544,8]
[320826852,1711585834622,-812.51,0.000544,8]
[320826853,1711585834631,-812.51,0.000544,8]
[320826854,1711585834640,-812.51,0.000544,8]
[320826855,1711585834650,-812.51,0.000544,8]
[320826856,1711585834659,-812.51,0.000544,8]
[320826857,1711585834668,-812.51,0.000544,8]
[320826858,1711585834677,-812.51,0.000544,8]
[320826859,1711585834686,-812.51,0.000544,8]
[320826860,1711585834695,-812.51,0.000544,8]
[320826861,1711585834704,-812.51,0.000544,8]
[320826862,1711585834713,-812.51,0.000544,8]
[320826863,1711585834723,-812.51,0.000544,8]
[320826864,1711585834732,-812.51,0.000544,8]
[320826865,1711585834742,-812.51,0.000544,8]
[320826866,1711585834752,-812.51,0.000544,8]
[320826867,1711585834762,-812.51,0.000544,8]
[320826868,1711585834772,-812.51,0.000544,8]
[320826869,1711585834781,-812.51,0.000544,8]
[320826870,1711585834794,-812.51,0.000544,8]
[320826871,1711585834804,-9914.28624498,0.000544,2]
[320826872,1711585834813,-2984.64259921,0.000544,2]
[320826873,1711585834822,-152.56,0.000544,8]
[320826874,1711585834830,-152.56,0.000544,8]
[320826875,1711585834839,-152.56,0.000544,8]
[320826876,1711585834849,-309.9497186,0.00054406,2]
[320826877,1711585834858,-320.27071566,0.00054406,26]
[320826878,1711585834870,-7500.0,0.00054407,3]
[320826879,1711585834879,-193.67,0.00054418,2]
[320826880,1711585834892,-151.032809,0.00054448,113]
[320826881,1711585834902,-151.28394325,0.00054489,60]
[320826882,1711585834911,-151.95091951,0.00054491,60]
[320826883,1711585834921,-178.07,0.00054495,2]
[320826884,1711585834931,-150.59,0.00054496,120]
[320826885,1711585834940,-779.86,0.00054496,2]
[320826886,1711585834951,-183.20085839,0.00054497,2]
[320826887,1711585834961,-2000.0,0.000545,30]
[320826888,1711585834971,-6545.44,0.00054504,120]
[320826889,1711585834982,-631.3725655,0.00054505,4]
[320826890,1711585834991,-894.08,0.00054505,120]
[320826891,1711585835001,-500.0,0.00054505,120]
[320826892,1711585835010,-1217.79,0.00054505,120]
[320826893,1711585835020,-1053.86,0.00054505,120]
[320826894,1711585835029,-500.0,0.00054505,120]
[320826895,1711585835041,-1061.17,0.00054505,120]
[320826896,1711585835050,-941.31,0.00054505,120]
[320826897,1711585835059,-774.14,0.00054505,120]
[320826898,1711585835068,-1853.81,0.00054505,120]
[320826899,1711585835078,-1721.7,0.00054505,120]
[320826900,1711585835087,-698.69,0.00054505,120]
[320826901,1711585835097,-3631.53,0.00054505,120]
[320826902,1711585835106,-500.0,0.00054505,120]
[320826903,1711585835115,-2780.99,0.00054505,120]
[320826904,1711585835125,-1968.56,0.00054505,120]
[320826905,1711585835134,-1282.08,0.00054505,120]
[320826906,1711585835144,-1715.41,0.00054505,120]
[320826907,1711585835153,-6545.44,0.00054505,120]
[320826908,1711585835163,-1065.7,0.00054505,120]
[320826909,1711585835174,-1808.66,0.00054505,120]
[320826910,1711585835183,-1412.04,0.00054505,120]
[320826911,1711585835193,-1766.9,0.00054505,120]
[320826912,1711585835203,-500.0,0.00054505,120]
[320826913,1711585835212,-1423.07,0.00054505,120]
[320826914,1711585835222,-2429.42,0.00054505,120]
[320826915,1711585835231,-1227.04,0.00054505,120]
[320826916,1711585835241,-1357.92,0.00054505,120]
[320826917,1711585835250,-500.0,0.00054505,120]
[320826918,1711585835259,-2081.09,0.00054505,120]
[320826919,1711585835269,-834.99,0.00054505,120]
[320826920,1711585835278,-1170.93,0.00054505,120]
[320826921,1711585835289,-826.86,0.00054505,120]
[320826922,1711585835299,-1818.11,0.00054505,120]
[320826923,1711585835308,-874.29,0.00054505,120]
[320826924,1711585835318,-500.0,0.00054505,120]
[320826925,1711585835327,-1129.96,0.00054505,120]
[320826926,1711585835336,-1139.34,0.00054505,120]
[320826927,1711585835346,-500.0,0.00054505,120]
[320826928,1711585835355,-500.0,0.00054505,120]
[320826929,1711585835364,-500.0,0.00054505,120]
[320826930,1711585835373,-823.09,0.00054505,120]
[320826931,1711585835383,-525.89,0.00054505,120]
[320826932,1711585835392,-500.0,0.00054505,120]
[320826933,1711585835401,-500.0,0.00054505,120]
[320826934,1711585835411,-500.0,0.00054505,120]
[320826935,1711585835421,-500.0,0.00054505,120]
[320826936,1711585835430,-2856.59,0.00054505,120]
[320826937,1711585835440,-500.0,0.00054505,120]
[320826938,1711585835449,-500.0,0.00054505,120]
[320826939,1711585835459,-500.0,0.00054505,120]
[320826940,1711585835468,-500.0,0.00054505,120]
[320826941,1711585835478,-500.0,0.00054505,120]
[320826942,1711585835488,-500.0,0.00054505,120]
[320826943,1711585835497,-151.84612425,0.00054505,120]
[320826944,1711585835507,-1093.9,0.00054505,120]
[320826945,1711585835516,-2050.05,0.00054505,120]
[320826946,1711585835525,-621.99367244,0.00054505,120]
[320826947,1711585835534,-500.0,0.00054505,120]
[320826948,1711585835546,-500.0,0.00054505,120]
[320826949,1711585835556,-965.68,0.00054505,120]
[320826950,1711585835565,-615.3,0.00054505,120]
[320826951,1711585835575,-500.0,0.00054505,120]
[320826952,1711585835585,-500.0,0.00054505,120]
[320826953,1711585835594,-500.0,0.00054505,120]
[320826954,1711585835604,-500.0,0.00054505,120]
[320826955,1711585835613,-500.0,0.00054505,120]
[320826956,1711585835622,-500.0,0.00054505,120]
[320826957,1711585835632,-1983.74,0.00054505,120]
[320826958,1711585835642,-500.0,0.00054506,30]
[320826959,1711585835651,-990.87,0.00054506,120]
[320826960,1711585835660,-500.0,0.00054506,2]
[320826961,1711585835670,-500.0,0.00054506,2]
[320826962,1711585835680,-1431.49,0.00054506,120]
[320826963,1711585835690,-500.0,0.00054506,2]
[320826964,1711585835699,-613.07,0.00054506,120]
[320826965,1711585835709,-500.0,0.00054506,60]
[320826966,1711585835719,-500.0,0.00054506,120]
[320826967,1711585835728,-537.0,0.00054506,120]
[320826968,1711585835738,-503.27183229,0.00054506,120]
[320826969,1711585835748,-1628.13,0.00054506,120]
[320826970,1711585835757,-651.44,0.00054506,120]
[320826971,1711585835768,-502.85808406,0.00054506,120]
[320826972,1711585835778,-1191.49,0.00054506,120]
[320826973,1711585835788,-503.66572076,0.00054506,120]
[320826974,1711585835798,-185.3546423,0.00054506,120]
[320826975,1711585835807,-500.0,0.00054506,120]
[320826976,1711585835817,-890.09,0.00054506,120]
[320826977,1711585835826,-500.0,0.00054506,120]
[320826978,1711585835835,-311.65070517,0.00054506,120]
[320826979,1711585835845,-150.0,0.00054506,7]
[320826980,1711585835854,-505.7670576,0.00054506,120]
[320826981,1711585835865,-500.0,0.00054506,120]
[320826982,1711585835875,-500.0,0.00054506,120]
[320826983,1711585835887,-500.0,0.00054506,120]
[320826984,1711585835896,-500.0,0.00054506,120]
[320826985,1711585835907,-500.0,0.00054506,120]
[320826986,1711585835916,-500.0,0.00054506,120]
[320826987,1711585835926,-500.0,0.00054506,120]
[320826988,1711585835936,-500.0,0.00054506,120]
[320826989,1711585835946,-500.0,0.00054506,120]
[320826990,1711585835956,-500.0,0.00054506,120]
[320826991,1711585835968,-500.0,0.00054506,120]
[320826992,1711585835977,-1399.82,0.00054506,120]
[320826993,1711585835987,-500.0,0.00054506,120]
[320826994,1711585835995,-507.04985341,0.00054506,120]
[320826995,1711585836005,-752.69,0.00054506,120]
[320826996,1711585836014,-311.26468857,0.00054506,120]
[320826997,1711585836024,-500.0,0.00054506,120]
[320826998,1711585836033,-503.55061836,0.00054506,120]
[320826999,1711585836044,-500.0,0.00054506,120]
[320827000,1711585836053,-500.0,0.00054506,120]
[320827001,1711585836062,-500.0,0.00054506,120]
[320827002,1711585836071,-500.0,0.00054506,120]
[320827003,1711585836081,-725.94,0.00054506,120]
[320827004,1711585836090,-500.0,0.00054506,120]
[320827005,1711585836100,-503.27772587,0.00054506,120]
[320827006,1711585836110,-500.0,0.00054506,120]
[320827007,1711585836120,-505.3396145,0.00054506,120]
[320827008,1711585836129,-500.0,0.00054506,120]
[320827009,1711585836138,-504.22494631,0.00054506,120]
[320827010,1711585836147,-576.5,0.00054506,120]
[320827011,1711585836156,-500.0,0.00054506,120]
[320827012,1711585836165,-500.0,0.00054506,120]
[320827013,1711585836174,-1104.95,0.00054506,120]
[320827014,1711585836183,-559.96,0.00054506,120]
[320827015,1711585836193,-505.65728619,0.00054506,120]
[320827016,1711585836202,-500.0,0.00054506,120]
[320827017,1711585836211,-1062.76,0.00054506,120]
[320827018,1711585836221,-610.77489557,0.00054506,120]
[320827019,1711585836230,-502.94,0.00054506,120]
[320827020,1711585836240,-500.0,0.00054506,120]
[320827021,1711585836249,-722.35,0.00054506,120]
[320827022,1711585836257,-500.0,0.00054506,120]
[320827023,1711585836267,-500.0,0.00054506,120]
[320827024,1711585836276,-500.0,0.00054506,120]
[320827025,1711585836285,-685.33,0.00054506,120]
[320827026,1711585836296,-500.0,0.00054506,120]
[320827027,1711585836306,-500.0,0.00054506,120]
[320827028,1711585836315,-500.0,0.00054506,2]
[320827029,1711585836324,-727.53,0.00054506,120]
[320827030,1711585836333,-351.83837307,0.00054506,120]
[320827031,1711585836342,-500.0,0.00054506,120]
[320827032,1711585836466,-500.0,0.00054506,120]
[320827033,1711585836476,-606.02,0.00054506,120]
[320827034,1711585836486,-500.98,0.00054506,120]
[320827035,1711585836496,-584.14,0.00054506,120]
[320827036,1711585836505,-500.0,0.00054506,120]
[320827037,1711585836514,-1132.38,0.00054506,120]
[320827038,1711585836523,-253.46517274,0.00054506,120]
[320827039,1711585836533,-1362.58,0.00054506,120]
[320827040,1711585836543,-184.63941369,0.00054506,120]
[320827041,1711585836553,-500.0,0.00054506,120]
[320827042,1711585836563,-500.0,0.00054506,120]
[320827043,1711585836573,-504.07288316,0.00054506,120]
[320827044,1711585836582,-500.0,0.00054506,120]
[320827045,1711585836592,-663.87,0.00054506,120]
[320827046,1711585836601,-500.0,0.00054506,120]
[320827047,1711585836611,-500.0,0.00054506,120]
[320827048,1711585836621,-500.0,0.00054506,120]
[320827049,1711585836631,-500.0,0.00054506,120]
[320827050,1711585836640,-500.0,0.00054506,120]
[320827051,1711585836649,-500.0,0.00054506,120]
[320827052,1711585836660,-500.0,0.00054506,120]
[320827053,1711585836669,-500.0,0.00054506,120]
[320827054,1711585836678,-500.0,0.00054506,120]
[320827055,1711585836688,-1100.65,0.00054506,120]
[320827056,1711585836698,-500.0,0.00054506,120]
[320827057,1711585836707,-500.0,0.00054506,120]
[320827058,1711585836717,-500.0,0.00054506,120]
[320827059,1711585836726,-500.0,0.00054506,120]
[320827060,1711585836735,-500.0,0.00054506,120]
[320827061,1711585836745,-551.96,0.00054506,30]
[320827062,1711585836756,-500.0,0.00054506,120]
[320827063,1711585836765,-500.0,0.00054506,120]
[320827064,1711585836774,-235.45854431,0.00054506,120]
[320827065,1711585836885,-366.12145569,0.00054506,120]
[320827066,1711585836895,-500.0,0.00054506,120]
[320827067,1711585836906,-609.08,0.00054506,120]
[320827068,1711585836915,-500.0,0.00054506,120]
[320827069,1711585836925,-512.56489989,0.00054506,120]
[320827070,1711585836934,-500.0,0.00054506,120]
[320827071,1711585836945,-184.73364442,0.00054506,120]
[320827072,1711585836958,-814.18635558,0.00054506,120]
[320827073,1711585836968,-500.0,0.00054506,120]
[320827074,1711585836978,-500.0,0.00054506,120]
[320827075,1711585836987,-500.0,0.00054506,120]
[320827076,1711585836997,-500.0,0.00054506,120]
[320827077,1711585837006,-500.00815272,0.00054506,120]
[320827078,1711585837016,-777.29,0.00054506,120]
[320827079,1711585837025,-595.21,0.00054506,120]
[320827080,1711585837034,-500.0,0.00054506,120]
[320827081,1711585837045,-444.8718576,0.00054506,120]
[320827082,1711585837054,-850.02,0.00054506,120]
[320827083,1711585837063,-509.609659,0.00054506,120]
[320827084,1711585837072,-500.0,0.00054506,120]
[320827085,1711585837081,-849.22,0.00054506,120]
[320827086,1711585837090,-500.0,0.00054506,120]
[320827087,1711585837099,-384.01449928,0.00054506,120]
[320827088,1711585837112,-115.98550072,0.00054506,120]
[320827089,1711585837121,-1868.92,0.00054506,120]
[320827090,1711585837131,-1089.86,0.00054506,120]
[320827091,1711585837142,-1089.2,0.00054506,120]
[320827092,1711585837152,-500.0,0.00054506,120]
[320827093,1711585837163,-501.64308387,0.00054506,120]
[320827094,1711585837191,-230.56691613,0.00054506,120]
[320827095,1711585837201,-500.0,0.00054506,120]
[320827096,1711585837210,-500.0,0.00054506,120]
[320827097,1711585837218,-500.0,0.00054506,120]
[320827098,1711585837227,-299.22,0.00054506,120]
[320827099,1711585837236,-1.09049068,0.00054506,120]
[320827100,1711585837255,-400.0,0.00054505,120]
[320827101,1711585837264,-498.90950932,0.00054506,120]
[320827102,1711585837274,-21.55379568,0.00054506,120]
[320827117,1711585837928,-152.48423607,0.00054471,120]
[320827118,1711585837937,-478.44620432,0.00054506,120]
[320827119,1711585837946,-489.43331761,0.00054506,120]
[320827120,1711585837960,-154.00668239,0.00054506,120]
[320827121,1711585837970,-500.0,0.00054506,120]
[320827122,1711585837980,-27.26213536,0.00054506,120]
[320827123,1711585837992,-390.0,0.00054506,120]
[320827124,1711585838003,-82.73786464,0.00054506,120]
[320827125,1711585838013,-176.75510983,0.00054506,120]
[320827126,1711585838024,-1128.31489017,0.00054506,120]
[320827127,1711585838033,-158.46430902,0.00054506,120]
[320827128,1711585838045,-341.53569098,0.00054506,120]
[320827129,1711585838054,-500.0,0.00054506,120]
[320827130,1711585838064,-500.0,0.00054506,120]
[320827131,1711585838073,-536.07667921,0.00054506,120]
[320827133,1711585838084,-83.61332079,0.00054506,120]
[320827135,1711585838093,-500.0,0.00054506,120]
[320827137,1711585838103,-837.59,0.00054506,120]
[320827139,1711585838112,-500.0,0.00054506,120]
[320827141,1711585838121,-636.48,0.00054506,120]
[320827143,1711585838131,-500.0,0.00054506,120]
[320827145,1711585838140,-500.0,0.00054506,120]
[320827147,1711585838150,-533.86,0.00054506,120]
[320827149,1711585838159,-1081.44,0.00054506,120]
[320827151,1711585838168,-345.50183373,0.00054506,120]
[320827154,1711585838180,-463.4202856,0.00054506,120]
[320827156,1711585838192,-300.27788067,0.00054506,120]
[320827158,1711585838201,-500.0,0.00054506,120]
[320827160,1711585838210,-878.85,0.00054506,120]
[320827162,1711585838219,-740.97,0.00054506,120]
[320827165,1711585838229,-500.0,0.00054506,120]
[320827168,1711585838238,-500.0,0.00054506,120]
[320827171,1711585838247,-327.46474045,0.00054506,120]
[320827174,1711585838257,-2619.44,0.00054506,120]
[320827176,1711585838266,-955.93,0.00054506,120]
[320827189,1711585838393,-500.0,0.00054506,120]
[320827191,1711585838404,-1135.83,0.00054506,120]
[320827193,1711585838413,-500.0,0.00054506,120]
[320827195,1711585838422,-957.94,0.00054506,120]
[320827197,1711585838431,-455.36156064,0.00054506,120]
[320827199,1711585838444,-44.63843936,0.00054506,120]
[320827201,1711585838453,-500.0,0.00054506,120]
[320827203,1711585838462,-876.06,0.00054506,120]
[320827205,1711585838471,-467.2826222,0.00054506,120]
[320827207,1711585838482,-178.0473778,0.00054506,120]
[320827209,1711585838491,-500.0,0.00054506,120]
[320827210,1711585838500,-330.81501368,0.00054506,120]
[320827213,1711585838512,-216.47498632,0.00054506,120]
[320827214,1711585838521,-1131.2,0.00054506,120]
[320827216,1711585838530,-259.25007807,0.00054506,120]
[320827218,1711585838540,-1361.19,0.00054506,120]
[320827220,1711585838549,-500.0,0.00054506,120]
[320827222,1711585838559,-500.0,0.00054506,120]
[320827224,1711585838568,-1649.67,0.00054506,120]
[320827225,1711585838576,-1713.73,0.00054506,120]
[320827227,1711585838586,-5580.78,0.00054506,120]
[320827229,1711585838595,-500.0,0.00054506,120]
[320827231,1711585838605,-1694.19,0.00054506,120]
[320827233,1711585838615,-500.0,0.00054506,120]
[320827235,1711585838624,-818.58,0.00054506,120]
[320827237,1711585838633,-500.0,0.00054506,120]
[320827239,1711585838643,-646.9,0.00054506,120]
[320827240,1711585838652,-816.82,0.00054506,120]
[320827242,1711585838661,-1707.16,0.00054506,120]
[320827244,1711585838670,-946.02,0.00054506,120]
[320827246,1711585838679,-834.64,0.00054506,120]
[320827248,1711585838689,-1214.72,0.00054506,120]
[320827250,1711585838698,-4414.13,0.00054506,120]
[320827252,1711585838707,-1580.36,0.00054506,120]
[320827254,1711585838716,-593.66,0.00054506,120]
[320827256,1711585838726,-649.19,0.00054506,120]
[320827257,1711585838736,-911.43,0.00054506,120]